Cogmind - Beta 15 @@@ ROGUE MODE // 2025.06.17 @ 18:37:35 Player: IEP Result: Destroyed by P-70 Sage with High-powered Shock Rifle Performance ------------- Evolutions (5) 2500 Regions Visited (8) 1600 Robots Destroyed (45) 225 Value Destroyed (1892) 1892 Prototype IDs (1) 20 Alien Tech Used (0) 0 Bonus (645) 645 TOTAL SCORE: 6882 Bonus ------- Follower Combat Kills 145 Entered DSFs 500 Cogmind --------- Core Integrity 0/1000 Matter 295/300 Energy 55/100 System Corruption 11% Temperature Cool (0) Movement Core (50) Location -5/Factory Parts ------- > --- POWER (2) -------- (None) > --- PROPULSION (4) --- (None) > --- UTILITY (9) ------ Visual Processing Unit Target Analyzer > --- WEAPON (2) ------- (None) > --- INVENTORY (5) ---- Medium Storage Unit Peak State ------------ > --- POWER ------------ Light Nuclear Core > --- PROPULSION ------- Light Treads Improved Medium Treads Carbon-fiber Leg Improved Titanium Leg > --- UTILITY ---------- Improved Heat Sink Medium Storage Unit Visual Processing Unit Seismic Detector Target Analyzer ECM Suite Layered Medium Armor Plating Improved Focal Shield > --- WEAPON ----------- Advanced Plasma Cannon Phasing Sabre > --- INVENTORY -------- Medium Storage Unit Advanced Plasma Cannon Advanced Plasma Cannon Remote Datajack [Rating: 51] Favorites ----------- Power Nuclear Core Engine Light Ion Engine Power Core Nuclear Core Propulsion Aluminum Leg Treads Light Treads Leg Aluminum Leg Utility Improved Heat Sink Device Improved Heat Sink Storage Medium Storage Unit Processor Visual Processing Unit Protection Layered Medium Armor Plating Weapon Enhanced Autogun Energy Gun Heavy Beamcaster Energy Cannon EM Pulse Cannon Ballistic Gun Enhanced Autogun Launcher Missile Launcher Special Weapon Remote Datajack Slashing Weapon Phasing Sabre Build | -11 -10 -9 -8 -7 -7 -6 -6 -5 ------- Run | Yrd Mat Mat Mat Fac DSF Fac Ext Fac Slots Evolved 10 | . . 2 2 2 . 2 . 2 Power 1 | . . . . . . 1 . . Propulsion 2 | . . 2 . . . . . . Utility 7 | . . . 2 2 . 1 . 2 Weapon . | . . . . . . . . . Parts Attached 61 | 6 5 9 11 5 . 1 17 7 Power 11 | 1 1 1 3 1 . 1 3 . Engine 3 | 1 . 1 1 . . . . . Core 8 | . 1 . 2 1 . 1 3 . Reactor . | . . . . . . . . . Propulsion 17 | 2 . 4 4 . . . 5 2 Treads 4 | . . 2 . . . . 2 . Leg 13 | 2 . 2 4 . . . 3 2 Wheel . | . . . . . . . . . Hover . | . . . . . . . . . Flight . | . . . . . . . . . Utility 18 | 1 3 1 2 3 . . 7 1 Device 9 | . 1 . 2 2 . . 3 1 Storage 2 | 1 1 . . . . . . . Processor 2 | . . 1 . . . . 1 . Hackware . | . . . . . . . . . Protection 5 | . 1 . . 1 . . 3 . Artifact . | . . . . . . . . . Weapon 15 | 2 1 3 2 1 . . 2 4 Energy Gun 1 | . . . . . . . 1 . Energy Cannon 4 | . . . 1 . . . . 3 Ballistic Gun 7 | 2 1 2 1 1 . . . . Ballistic Cannon . | . . . . . . . . . Launcher 1 | . . 1 . . . . . . Special Weapon 1 | . . . . . . . . 1 Impact Weapon . | . . . . . . . . . Slashing Weapon 1 | . . . . . . . 1 . Piercing Weapon . | . . . . . . . . . Special Melee Weapon . | . . . . . . . . . Unidentified Prototypes 1 | . . 1 . . . . . . Parts Lost 46 | . 2 5 5 . . . 18 16 Power 8 | . 1 1 1 . . . 4 1 Propulsion 16 | . . 3 2 . . . 7 4 Utility 13 | . 1 1 . . . . 5 6 Weapon 9 | . . . 2 . . . 2 5 Highest Loss Streak 15 | . 2 5 5 . . . 11 15 To Critical Strikes 1 | . . 1 . . . . . . Average Backups 7 | 4 6 8 8 9 10 9 8 3 Power 1 | . 1 . 1 2 3 2 2 . Propulsion . | 2 2 1 . . . . . . Utility 2 | . . 3 3 3 4 4 3 1 Weapon 1 | . 1 2 1 1 1 1 1 1 Tool/Special . | . . . . . . . . . Unused Backups 6 | . 1 2 1 . . . 1 1 Power 1 | . . . 1 . . . . . Propulsion 1 | . 1 . . . . . . . Utility 2 | . . 1 . . . . . 1 Weapon 1 | . . 1 . . . . . . Tool/Special 1 | . . . . . . . 1 . Average Slot Usage (%) 87 | . 97 88 90 99 97 86 87 66 Engine 2 | . 7 10 1 . . . . . Core 6 | . 6 . 6 7 7 13 11 3 Treads 3 | . . 2 9 . . . . 8 Leg 20 | . 28 31 18 30 30 26 18 5 Device 17 | . 4 9 17 22 23 20 23 14 Storage 7 | . 14 11 9 7 7 6 6 4 Processor 6 | . . . 9 7 7 6 7 11 Protection 3 | . 8 . . 7 4 . 3 4 Energy Cannon 3 | . . . 5 7 7 6 2 3 Ballistic Gun 10 | . 28 19 10 7 7 6 6 1 Peak Build Rating 51 | 6 10 19 24 30 28 28 47 51 Average Rating 26 | 4 9 16 22 28 27 28 35 36 On Entrance 18 | . 6 9 15 24 28 25 28 35 Naked Turns . | . . . . . . . . . Heaviest Build 53 | 11 21 24 27 39 39 38 53 47 Greatest Support 60 | 20 20 40 43 43 43 43 60 50 Greatest Overweight (x) 8 | 3 1 1 1 . . . 8 2 Average Overweight (x) . | 1 . . . . . . . . Largest Inventory Capacity 10 | 8 10 10 10 10 10 10 10 10 Average Capacity 9 | 7 8 10 10 10 10 10 10 9 Most Carried 10 | 7 8 10 10 10 10 9 10 6 Average Carried 7 | 4 6 9 8 9 10 9 7 3 Final Capacity 10 | 8 10 10 10 10 10 10 10 5 Final Carried 10 | 5 8 7 9 10 10 9 3 1 Class Distribution -------------------- 74% | Mutant 25% | Scavenger-Mutant Dominant Class ---------------- Mutant | -10/Materials Mutant | -9/Materials Mutant | -8/Materials Mutant | -7/Factory Mutant | -7/DSF Mutant | -6/Factory Mutant | -6/Extension Scavenger-Mutant | -5/Factory Resources | -11 -10 -9 -8 -7 -7 -6 -6 -5 ----------- Run | Yrd Mat Mat Mat Fac DSF Fac Ext Fac Matter Collected 1530 | 236 194 122 378 . . . 530 70 Remotely . | . . . . . . . . . Salvage Created 1952 | 55 237 306 379 . . . 794 181 Parts 89 | 2 7 18 17 . . . 38 7 Haulers Intercepted . | . . . . . . . . . Recyclers Shooed 1 | . . 1 . . . . . . Parts Field Recycled . | . . . . . . . . . Retrieved Matter . | . . . . . . . . . Parts Self-Destructed . | . . . . . . . . . Prevented . | . . . . . . . . . Kills | -11 -10 -9 -8 -7 -7 -6 -6 -5 ------- Run | Yrd Mat Mat Mat Fac DSF Fac Ext Fac Combat Hostiles Destroyed 39 | . 5 9 9 . . . 13 3 Melee 1 | . . . 1 . . . . . Guns 24 | . 5 5 4 . . . 10 . Cannons 6 | . . . 1 . . . 2 3 AOE 6 | . . 3 3 . . . . . Classes Destroyed 10 | 1 1 4 1 . . . 3 . Worker 1 | . . 1 . . . . . . Builder 3 | . . 2 1 . . . . . Recycler 2 | 1 . 1 . . . . . . Swarmer 2 | . . . . . . . 2 . Grunt 22 | . 5 3 8 . . . 5 1 Brawler 1 | . . 1 . . . . . . Duelist 1 | . . . 1 . . . . . Sentry 9 | . . 5 . . . . 4 . Programmer 3 | . . . . . . . 1 2 Behemoth 1 | . . . . . . . 1 . Best Kill Streak 9 | 1 2 9 7 . . . 4 2 Combat Bots Only 6 | . 2 5 6 . . . 4 2 Max Kills in Single Turn 3 | 1 1 3 1 . . . 2 1 Gunslinging . | . . . . . . . . . Exploded 2 | . . 2 1 . . . . . Melee 1 | . . . 1 . . . . . Uniques/NPCs Destroyed . | . . . . . . . . . Combat | -11 -10 -9 -8 -7 -7 -6 -6 -5 -------- Run | Yrd Mat Mat Mat Fac DSF Fac Ext Fac Hostile Shots Fired 717 | . 51 67 55 . 2 4 346 192 Missed 252 | . 12 23 11 . . 4 149 53 Hits 465 | . 39 44 44 . 2 . 197 139 Melee 6 | . . . 6 . . . . . Projectile 459 | . 39 44 38 . 2 . 197 139 AOE 1 | . . . . . . . 1 . Critical Strikes 15 | . . 1 3 . 2 . 1 8 Damage Taken 6331 | . 502 649 880 . 115 . 1695 2490 Core 1636 | . 63 104 221 . . . 235 1013 Absorbed by Shields 622 | . . . . . . . 622 . Core Remaining (%) 79 | 100 74 74 59 . 100 . 72 . Volleys Fired 143 | 4 19 24 17 . . . 61 18 Largest 2 | 2 2 2 2 . . . 2 2 Hottest 196 | 40 40 61 88 . . . 109 196 Shots Fired 257 | 8 38 48 33 . . . 110 20 Gun 199 | 8 38 35 26 . . . 92 . Cannon 40 | . . . 3 . . . 18 19 Launcher 17 | . . 13 4 . . . . . Special 1 | . . . . . . . . 1 Kinetic 171 | 8 38 35 26 . . . 64 . Thermal 47 | . . . . . . . 28 19 Explosive 17 | . . 13 4 . . . . . Electromagnetic 21 | . . . 3 . . . 18 . Robot Hit Streak 22 | 6 7 10 22 . . . 11 6 Robot Miss Streak 5 | 2 1 2 2 . . . 3 5 Penetration Max 1 | . . . . . . . 1 . Secondary Targets 5 | . 1 1 1 . . . 2 . Max Gunslinging Chain 1 | . 1 1 1 . . . 1 . Shots Hit Robots 181 | 6 27 34 26 . . . 77 11 Core Hits 92 | 2 11 25 18 . . . 32 4 Critical Kills 1 | . . . . . . . 1 . Critical Parts Destroyed . | . . . . . . . . . Critical Strikes 3 | . . . . . . . 3 . Burn 2 | . . . . . . . 2 . Destroy 1 | . . . . . . . 1 . Melee Attacks . | . . . . . . . . . Impact . | . . . . . . . . . Slashing . | . . . . . . . . . Piercing . | . . . . . . . . . Sneak Attacks . | . . . . . . . . . Combat Hostiles . | . . . . . . . . . Follow-up Attacks . | . . . . . . . . . Damage Inflicted 4789 | 53 375 1160 791 . . . 1982 428 Guns 2918 | 53 375 436 377 . . . 1677 . Cannons 789 | . . . 65 . . . 305 419 Explosions 1051 | . . 724 327 . . . . . Melee . | . . . . . . . . . Ramming 31 | . . . 22 . . . . 9 Kinetic 2375 | 53 375 436 377 . . . 1134 . Thermal 962 | . . . . . . . 543 419 Explosive 1051 | . . 724 327 . . . . . Electromagnetic 370 | . . . 65 . . . 305 . Impact . | . . . . . . . . . Slashing . | . . . . . . . . . Piercing . | . . . . . . . . . Highest Corruption 11 | . . . . . . . 1 11 Average Corruption 2 | . . . . . . . 1 5 Corruption Purged . | . . . . . . . . . Corruption Blocked . | . . . . . . . . . Effects 6 | . . . . . . . 3 3 Message Errors 3 | . . . . . . . 2 1 Heat Flow Errors 2 | . . . . . . . . 2 Energy Discharges 1 | . . . . . . . 1 . Overload Shots . | . . . . . . . . . Overflow Damage 7 | . . . 5 . . . . 2 Projectiles 7 | . . . 5 . . . . 2 Explosions . | . . . . . . . . . Melee . | . . . . . . . . . Knockbacks 1 | . . . . . . . . 1 Impact 1 | . . . . . . . . 1 Kinetic . | . . . . . . . . . Secondary . | . . . . . . . . . Self-Inflicted Damage 92 | . . . 91 . . . . 1 Shots 2 | . . . 2 . . . . . Rammed 5 | . . . 4 . . . . 1 Targets Rammed 13 | . . . 6 . . . . 7 Kicked 7 | . . . 1 . . . . 6 Crushed 1 | . . . 1 . . . . . Highest Temperature 191 | . 26 28 21 . . . 151 191 Average Temperature 39 | . 9 10 13 . . . 48 53 Received Heat Transfer 1934 | . 276 180 378 . . . 452 648 Siege Activations . | . . . . . . . . . Martial Activations . | . . . . . . . . . Shielding Activations . | . . . . . . . . . Robots Disrupted . | . . . . . . . . . Combat Hostiles . | . . . . . . . . . Robots Corrupted 1 | . . . . . . . 1 . Combat Hostiles 1 | . . . . . . . 1 . Parts Fried 4 | . . . . . . . 4 . Impact Corruptions . | . . . . . . . . . Robots Melted . | . . . . . . . . . Combat Hostiles . | . . . . . . . . . Parts Melted 4 | . . . . . . . 1 3 Heat Transferred 1549 | . . . . . . . 999 550 Parts Sabotaged . | . . . . . . . . . Parts Stolen . | . . . . . . . . . Parts Stripped . | . . . . . . . . . Power Chain Reactions . | . . . . . . . . . Alert | -11 -10 -9 -8 -7 -7 -6 -6 -5 ------- Run | Yrd Mat Mat Mat Fac DSF Fac Ext Fac Maximum Alert Level . | . . . . . . . . . Low Security (%) 100 | 100 100 100 100 100 100 100 100 100 Level 1 . | . . . . . . . . . Level 2 . | . . . . . . . . . Level 3 . | . . . . . . . . . Level 4 . | . . . . . . . . . Level 5 . | . . . . . . . . . High Security . | . . . . . . . . . Max Security . | . . . . . . . . . Peak Influence 157 | 5 50 140 157 3 . . 89 63 Initial 50 | . . 3 50 3 . . . 42 Average 26 | . 18 37 78 . . . 17 13 Influence Increases 1314 | 5 146 321 262 . . . 411 169 Destroy 0b10 Robot/C 840 | . 100 180 180 . . . 320 60 Destroy 0b10 Robot/NC 45 | 5 . 20 5 . . . 15 . Destroy Leader 202 | . 30 80 30 . . . 42 20 Allied During Kill 17 | . . . . . . . 17 . Successful Hack 13 | . . . . . . . 13 . Disable Machine 30 | . . . 15 . . . . 15 Destroy Structure 77 | . 1 41 17 . . . 4 14 Partial Spotted 15 | . . . 15 . . . . . Lose Combat Pursuer 75 | . 15 . . . . . . 60 Influence Decreases 1261 | 5 136 211 374 8 . . 323 204 Entered New Map 128 | . . 7 70 5 . . . 46 Time Decay 780 | 5 121 93 254 3 . . 208 96 Lost Part 267 | . 15 50 50 . . . 90 62 Lost Ally 25 | . . . . . . . 25 . Purge Threat 61 | . . 61 . . . . . . Squads Dispatched 9 | . 2 2 2 . . . 2 1 Investigation 1 | . . . . . . . 1 . Extermination 1 | . . . . . . . . 1 Reinforcement 7 | . 2 2 2 . . . 1 . Assault . | . . . . . . . . . Garrison . | . . . . . . . . . Intercept . | . . . . . . . . . Searches Triggered . | . . . . . . . . . Construction Impeded 1 | . . . 1 . . . . . Haulers Reinforced . | . . . . . . . . . Active Scanning Responses . | . . . . . . . . . Cargo Convoy Interrupts . | . . . . . . . . . Stealth | -11 -10 -9 -8 -7 -7 -6 -6 -5 --------- Run | Yrd Mat Mat Mat Fac DSF Fac Ext Fac Distress Signals 7 | . 1 . 2 . . . 3 1 Communications Jammed . | . . . . . . . . . Distress Signals . | . . . . . . . . . Times Spotted 96 | . 8 15 19 1 1 2 21 29 Peak Tracking Total 8 | . 3 5 6 1 1 2 5 8 Tactical Retreats 9 | . 1 . 2 . 1 . 3 2 Traps | -11 -10 -9 -8 -7 -7 -6 -6 -5 ------- Run | Yrd Mat Mat Mat Fac DSF Fac Ext Fac Traps Triggered 1 | . . . . . . . 1 . Indirectly . | . . . . . . . . . Trap Hack Attempts . | . . . . . . . . . Triggered . | . . . . . . . . . Disarmed . | . . . . . . . . . Reprogrammed . | . . . . . . . . . Reused . | . . . . . . . . . Traps Extracted . | . . . . . . . . . Installed . | . . . . . . . . . Triggered . | . . . . . . . . . Machines | -11 -10 -9 -8 -7 -7 -6 -6 -5 ---------- Run | Yrd Mat Mat Mat Fac DSF Fac Ext Fac Machines Disabled 2 | . . . 1 . . . . 1 Max in Single Turn 1 | . . . 1 . . . . 1 Energy Cycler 1 | . . . . . . . 1 . Machines Repaired . | . . . . . . . . . Machines Dismantled . | . . . . . . . . . Machines Sabotaged . | . . . . . . . . . Overloaded Fab Kills . | . . . . . . . . . Hacking | -11 -10 -9 -8 -7 -7 -6 -6 -5 --------- Run | Yrd Mat Mat Mat Fac DSF Fac Ext Fac Machines Accessed 15 | . . 2 1 1 . 1 8 2 Terminals 15 | . . 2 1 1 . 1 8 2 Fabricators . | . . . . . . . . . Repair Stations . | . . . . . . . . . Recycling Units . | . . . . . . . . . Scanalyzers . | . . . . . . . . . Garrison Access . | . . . . . . . . . Total Hacks 30 | . . 5 1 1 . 1 19 3 Successful 11 | . . 1 . 1 . 1 7 1 Failed 19 | . . 4 1 . . . 12 2 Catastrophic 5 | . . . 1 . . . 3 1 Database Lockouts . | . . . . . . . . . Manual 4 | . . . 1 . . . 3 . Terminals 30 | . . 5 1 1 . 1 19 3 Fabricators . | . . . . . . . . . Repair Stations . | . . . . . . . . . Recycling Units . | . . . . . . . . . Scanalyzers . | . . . . . . . . . Garrison Access . | . . . . . . . . . Terminal Hacks 11 | . . 1 . 1 . 1 7 1 Record 4 | . . . . . . 1 3 . Robot Analysis 1 | . . . . . . . 1 . Open Door 1 | . . . . . . . 1 . Open DSF 1 | . . . . 1 . . . . Alert Level 2 | . . . . . . . 1 1 Unreport Threat 1 | . . 1 . . . . . . Investigation Status 1 | . . . . . . . 1 . Fabricator Hacks . | . . . . . . . . . Repair Station Hacks . | . . . . . . . . . Recycling Unit Hacks . | . . . . . . . . . Scanalyzer . | . . . . . . . . . Garrison Access Hacks . | . . . . . . . . . Unauthorized Hacks . | . . . . . . . . . Terminals . | . . . . . . . . . Fabricators . | . . . . . . . . . Repair Stations . | . . . . . . . . . Recycling Units . | . . . . . . . . . Scanalyzers . | . . . . . . . . . Garrison Access . | . . . . . . . . . Data Cores Recovered . | . . . . . . . . . Used . | . . . . . . . . . Hacking Detections 14 | . . 2 1 . . 1 8 2 Full Trace Events 1 | . . . . . . . 1 . Feedback Events . | . . . . . . . . . Feedback Blocked . | . . . . . . . . . Robot Schematics Acquired . | . . . . . . . . . Robots Built . | . . . . . . . . . Authchips . | . . . . . . . . . Time . | . . . . . . . . . Total Robot Build Rating . | . . . . . . . . . Part Schematics Acquired . | . . . . . . . . . Parts Built . | . . . . . . . . . Authchips . | . . . . . . . . . Time . | . . . . . . . . . Total Part Build Rating . | . . . . . . . . . Parts Repaired . | . . . . . . . . . Time . | . . . . . . . . . Parts Recycled . | . . . . . . . . . Recycled Matter . | . . . . . . . . . Retrieved Matter . | . . . . . . . . . Retrieved Components . | . . . . . . . . . Parts Scanalyzed . | . . . . . . . . . Part Schematics Acquired . | . . . . . . . . . Parts Damaged . | . . . . . . . . . Bothacking | -11 -10 -9 -8 -7 -7 -6 -6 -5 ------------ Run | Yrd Mat Mat Mat Fac DSF Fac Ext Fac Used RIF Installer . | . . . . . . . . . Robots Hacked 1 | . . . . . . . . 1 Non-combat . | . . . . . . . . . Combat 1 | . . . . . . . . 1 Robot Hacks Applied 1 | . . . . . . . . 1 parse_system 1 | . . . . . . . . 1 Relay Couplers Released . | . . . . . . . . . Fabnet Peak Effective % . | . . . . . . . . . Robots Rewired . | . . . . . . . . . Allies Hacked . | . . . . . . . . . Hacks Repelled . | . . . . . . . . . Allies | -11 -10 -9 -8 -7 -7 -6 -6 -5 -------- Run | Yrd Mat Mat Mat Fac DSF Fac Ext Fac Total Allies 4 | . . . . . . . 4 . Largest Group 2 | . . . . . . . 2 1 Highest-Rated Group 198 | . . . . . . . 198 159 Highest-Rated Ally 159 | . . . . . . . 159 159 Total Orders . | . . . . . . . . . Ally Attacks 31 | . . . . . . . 31 . Total Damage 747 | . . . . . . . 747 . Kills 6 | . . . . . . . 6 . Allies Corrupted . | . . . . . . . . . Allies Melted . | . . . . . . . . . Intel | -11 -10 -9 -8 -7 -7 -6 -6 -5 ------- Run | Yrd Mat Mat Mat Fac DSF Fac Ext Fac Active Infowar (turns) 2422 | . . 24 558 373 57 45 866 499 Optics 2422 | . . 24 558 373 57 45 866 499 Seismic 1708 | . . . . 353 57 45 866 387 ECM 2013 | . . . 544 373 57 45 602 392 Robot Analysis Total 1 | . . . . . . . 1 . Derelict Logs Recovered . | . . . . . . . . . Drone Launches . | . . . . . . . . . Drone Recoveries . | . . . . . . . . . Exploration | -11 -10 -9 -8 -7 -7 -6 -6 -5 ------------- Run | Yrd Mat Mat Mat Fac DSF Fac Ext Fac Turns Passed 3186 | 76 327 385 558 373 57 45 866 499 Spaces Moved 1668 | 35 164 212 236 236 48 37 411 289 Core 126 | 18 . . . . . . 5 103 Treads 202 | . . 26 44 . . . 45 87 Legs 1340 | 17 164 186 192 236 48 37 361 99 Wheels . | . . . . . . . . . Hover . | . . . . . . . . . Flight . | . . . . . . . . . Fastest Speed 50 | 50 120 120 120 120 120 120 120 50 Average Speed 140 | 139 149 125 160 120 120 120 153 134 Slowest Speed 450 | 200 190 190 240 120 120 120 450 195 Overloaded Moves . | . . . . . . . . . Propulsion Burnouts . | . . . . . . . . . Robots Hopped . | . . . . . . . . . Potential Cave-ins 3 | . . . . . . . 3 . Cave-ins Triggered . | . . . . . . . . . Exploration Rate (%) 23 | 4 33 29 24 5 50 2 55 10 Regions Visited 8 Branch Regions 1 Pre-discovered Areas . | . . . . . . . . . Known Exits Taken 1 | . . . . 1 . . . . Unknown Exits Taken 6 | 1 1 1 1 . . 1 1 . Scrap Searched . | . . . . . . . . . Spaces Dug . | . . . . . . . . . Terrain Destroyed 112 | . . 85 17 . . . 3 7 Melee . | . . . . . . . . . Projectile 10 | . . . . . . . 3 7 AOE 102 | . . 85 17 . . . . . Terrain Rammed . | . . . . . . . . . Walls Destroyed . | . . . . . . . . . Machines Disabled . | . . . . . . . . . Actions | -11 -10 -9 -8 -7 -7 -6 -6 -5 --------- Run | Yrd Mat Mat Mat Fac DSF Fac Ext Fac Total 2276 | 55 208 295 387 329 47 37 544 374 Wait 314 | . 10 39 104 80 . . 35 46 Move 1660 | 34 163 211 235 235 47 36 410 289 Hop . | . . . . . . . . . Pick Up 58 | 11 8 8 10 5 . . 11 5 Fast Attach 6 | . . 1 2 . . . 3 . Attach 47 | 6 3 6 7 3 . 1 15 6 Detach . | . . . . . . . . . Swap 13 | . 3 2 3 2 . . 1 2 Drop 18 | . 2 4 3 4 . . 4 1 Fire 143 | 4 19 24 17 . . . 61 18 Melee . | . . . . . . . . . Ram 1 | . . . . . . . . 1 Kick 7 | . . . 1 . . . . 6 Crush 5 | . . . 5 . . . . . Escape Stasis 4 | . . . . . . . 4 . Rewire . | . . . . . . . . . Trap . | . . . . . . . . . Miscellaneous . | . . . . . . . . . Route ------- -11/Scrapyard -10/Materials -9/Materials -8/Materials -7/Factory -7/DSF -6/Factory -6/Extension -5/Factory History --------- Turn | Location | Event 21 | -11/Scrapyard | Discovered new exit (range 14) 77 | -11/Scrapyard | Entered Materials 78 | -10/Materials | Met a group of wandering Federalists 326 | -10/Materials | Build established: Mutant 369 | -10/Materials | Discovered new exit (range 16) 404 | -10/Materials | Entered another Materials area 404 | -9/Materials | Evolved 2 slots: Propulsion x2 763 | -9/Materials | Discovered new exit (range 16) 773 | -9/Materials | Lost 5 parts (1p3n1u) 789 | -9/Materials | Entered another Materials area 789 | -8/Materials | Evolved 2 slots: Utility x2 919 | -8/Materials | Lost 5 parts (1p2n2w) 1326 | -8/Materials | Discovered new exit (range 17) 1347 | -8/Materials | Entered Factory 1347 | -7/Factory | Evolved 2 slots: Utility x2 1719 | -7/Factory | Identified exit to DSF 1720 | -7/Factory | Entered DSF 1762 | -7/DSF | Discovered new exit (range 12) 1770 | -7/DSF | Additional patrols routed to DSF 1777 | -7/DSF | Entered Factory 1777 | -6/Factory | Evolved 2 slots: Power x1, Utility x1 1784 | -6/Factory | Discovered new exit (range 18) 1822 | -6/Factory | Entered Extension 1909 | -6/Extension | Spotted B-75 Beast 2393 | -6/Extension | Rescued a captive Derelict 2512 | -6/Extension | Lost 4 parts (1p1n1u1w) 2515 | -6/Extension | Energy Cycler disabled 2515 | -6/Extension | Rescued a captive Derelict 2515 | -6/Extension | Rescued a captive Derelict 2515 | -6/Extension | Rescued a captive Derelict 2516 | -6/Extension | Rescued a captive Derelict 2516 | -6/Extension | Rescued a captive Derelict 2542 | -6/Extension | Rescued A7 2566 | -6/Extension | Destroyed B-75 Beast 2591 | -6/Extension | Lost 11 parts (2p4n4u1w) 2640 | -6/Extension | Spotted B-75 Beast 2652 | -6/Extension | Discovered new exit (range 18) 2665 | -6/Extension | Allies destroyed B-75 Beast 2688 | -6/Extension | Entered Factory 2688 | -5/Factory | Accompanied by 1 ally (A7) 2688 | -5/Factory | Evolved 2 slots: Utility x2 2886 | -5/Factory | Build established: Scavenger-Mutant 3123 | -5/Factory | Core integrity fell below 50% 3153 | -5/Factory | Lost 15 parts (1p4n6u4w) 3179 | -5/Factory | Core integrity fell below 20% 3179 | -5/Factory | System corruption reached 10% 3187 | -5/Factory | Destroyed by P-70 Sage with High-powered Shock Rifle Last Messages --------------- Current Alert Level: Low Security 03161_ ALERT: Security rotation in progress. 03173_ C-30 ARC bursts open, deploying its payload. 03173_ H-66 Slayer unfolds itself. 03173_ K-01 Serf collects debris. 03174_ U-05 Engineer builds a Wall. 03175_ Slug penetrates Wall. 03177_ Slug penetrates Assembly Bed. 03178_ Assembly Bed disabled. 03180_ U-05 Engineer builds a Wall. 03182_ Slug penetrates S-27 Virus. 03182_ S-27 Virus destroyed. 03182_ Penetrated by Slug. 03182_ K-01 Serf collects debris. 03184_ Adv. Plasma Cannon destroyed. 03186_ K-01 Serf collects debris. 03186_ Slug penetrates S-27 Virus. 03186_ S-27 Virus destroyed. 03187_ Penetrated by Slug. 03187_ Slug penetrates Wall. Map ----- +----------------------------------------------------+ | ?? * " # ##/###########????# #???? | | ?? " # ^ # #?????# #???? | | ???? " + # """"" #?????# #???? | | ???????# # ""T"" #?????###############???? | | ???????# + #???????????????????????? | | ???????# # #???????????????????????? | | ???????# # #???????????????????????? | | ???????# # #???????????????????????? | | ???????# # #???????????????????????? | | ???????# ##########???????????????????????? | | ???????# ##+#######??#####+??????????????????? | | ???????# # +?? ???????????????????? | | ???????# # """" #?? ??????????????????? | | ???????# # """" #?? ??????????????????? | | ???????# # """" +?? ???????????????????? | | ???????# + """" #?? ???????????????????? | | ???????# # """" #?# """"?????????????????? | | ???????# # """" ??# """"""" ?????????????? | | ???????# # """" ??# """"""" ""???????????? | | ???????# # ??# """"""" """""????????? | | ???????# #########??# ????????? | | """# #??????????# ???????? | | + ############ ???????? | | """# p! ??????? | | """# k ??????? | | ? ""?#u hs @ h ??????? | | ???????# s%= u k#????????? | | ????"""# kh*% k #????????? | | ????"""# R""[" ########################????????? | | ????"??# """" #???????????????????????????????? | | ???????# %"""" #???????????????????????????????? | | ???????# """" #???????????????????????????????? | | ???????# """" #???????????????????????????????? | | ???????# """" #???????????????????????????????? | | ???????# ? #???????????????????????????????? | | ??????? ?? +???????????????????????????????? | | ??????? ?? #???????????????????????????????? | | ???????##????"####???????????????????????????????? | | ?????????????"???????????????????????????????????? | | ?????????????????????????????????????????????????? | | ?????????????????????????????????????????????????? | | ?????????????????????????????????????????????????? | | ?????????????????????????????????????????????????? | | ?????????????????????????????????????????????????? | | ?????????????????????????????????????????????????? | | ?????????????????????????????????????????????????? | | ?????????????????????????????????????????????????? | | ?????????????????????????????????????????????????? | | ?????????????????????????????????????????????????? | | ?????????????????????????????????????????????????? | +----------------------------------------------------+ Best States ------------- Heat Dissipation 65 Energy Generation 28 Energy Capacity 455 Matter Stores 300 Matter Capacity 300 Sight Range 18 Terrain Scan Density 10 ECM Strength 1 Armor Coverage 300 Resistance: KI 25 Evasion (%) 55 Target Analysis 5 Recoil Reduction 2 Item Schematics ----------------- None Robot Schematics ------------------ None Fabricated ------------ Nothing Repaired ---------- Nothing Alien Tech Used ----------------- None Achievements -------------- None Challenges ------------ None Game ------ Seed TeslaAerolevSlayer Manual? 0 Play Time 00:41:16 Cumulative 33.5 hours Start 2025.06.17 @ 17:53:51 End 2025.06.17 @ 18:37:35 Sessions 1 Manual Loads 0 Difficulty Rogue Special Mode None Game No. 56 Rogue 56 Adventurer 0 Explorer 0 Win Type - Total 0 Types 0/0/0/0/0/0/0/0/0/0 Lore% 17 Gallery% 26 Achievement% 20 Wizard Run 0 Options --------- Layout 0 ASCII 0 Keyboard 0 Movement Mouse Keybinds 0 Fullscreen 2 Font 24/Smallcaps Map View 76x50 Zoom Use 0% Tactical HUD 1 Map Filters NONE Filters NONE Steam 1 RUN: 1f4d7af4-8e61-4214-958a-bb972106ecb6